{"text_format":"1","workbook":"xlsx","n_sheets":1,"sheets":["прилож. № 7"],"not_rendered":{"charts":0,"images":0,"macros":0,"external_links":0,"defined_names":0,"comments":0,"pivot_tables":0},"unopened":[],"bounds":{"document_bytes":16777216,"sheet_cells":100000,"rows_first":2000,"rows_last":500,"rows_between":2000,"halvings":0,"cell_chars":16384,"cell_head_chars":4096},"cells_cut":0,"cells_raw":0,"read":"whole","date_system":"1900"}

{"sheet":"прилож. № 7","index":0,"n_rows":212,"n_cols":6,"rows_kept":212,"cut":false,"hidden":false,"merged":[[0,0,0,5],[1,0,1,5],[2,1,2,5],[3,0,3,5]]}
["                                                                                    Приложение № 2"]
["                                                                                                            к  решению Думы Ушаковского муниципального образования от 22.02.2018 г. № 88                                                                                                                                       \"О внесении изменений в решение Думы Ушаковского муниципального образования № 66 от 08.12.2017 г. \"Об утверждении бюджета на 2018 г. и на плановый период 2019-2020 годов\"                                                                                                                                                                                                                                      "]
[]
["РАСПРЕДЕЛЕНИЕ БЮДЖЕТНЫХ АССИГНОВАНИЙ  ПО РАЗДЕЛАМ, ПОДРАЗДЕЛАМ, ЦЕЛЕВЫМ СТАТЬЯМ (МУНИЦИПАЛЬНЫМ ПРОГРАММАМ И НЕПРОГРАММНЫМ НАПРАВЛЕНИЯМ ДЕЯТЕЛЬНОСТИ) И ВИДАМ РАСХОДОВ КЛАССИФИКАЦИИ РАСХОДОВ БЮДЖЕТОВ НА 2018 ГОД"]
[]
["Наименование","РЗ","Пр","КЦСР","КВР","Сумма         (тыс. руб)"]
["В С Е Г О",null,null,null,null,{"$f":"F8+F90+F95+F104+F121+F166+F181+F198","v":83264.100000000006}]
["ОБЩЕГОСУДАРСТВЕННЫЕ ВОПРОСЫ","01","00","00.0.00.00000","000",{"$f":"F9+F40+F83+F62+F32","v":19780.300000000003}]
["Функционирование высшего должностного лица субъекта Российской Федерации и муниципального образования","01","02","00.0.00.00000","000",{"$f":"F10","v":1756.3}]
["Непрограммные расходы органов местного самоуправления","01","02","91.0.00.00000","000",{"$f":"F11+F18","v":1756.3}]
["Непрограммные расходы органов местного самоуправления за счет средств местного бюджета","01","02","91.1.00.00000","000",{"$f":"F12","v":1756.3}]
["Осуществление органами местного самоуправления полномочий местного значения поселения","01","02","91.1.00.60000","000",{"$f":"F13","v":1756.3}]
["Обеспечение деятельности в сфере установленных функций","01","02","91.1.00.60001","000",{"$f":"F16+F17","v":1756.3}]
["Расходы на выплаты персоналу в целях обеспечения выполнения функций государственными (муниципальными) органами, казенными учреждениями, органами управления государственными внебюджетными фондами","01","02","91.1.00.60001","100",{"$f":"F15","v":1756.3}]
["Расходы на выплаты персоналу государственных (муниципальных) органов","01","02","91.1.00.60001","120",{"$f":"F16+F17","v":1756.3}]
["Фонд оплаты труда государственных (муниципальных) органов ","01","02","91.1.00.60001","121",1413.1]
["Взносы по обязательному социальному страхованию на выплаты денежного содержания и иные выплаты работникам государственных (муниципальных) органов","01","02","91.1.00.60001","129",343.2]
["Непрограммные расходы органов местного самоуправления за счет средств областного бюджета","01","02","91.1.00.60003","000",{"$f":"F19","v":0}]
["Субсидии на выравнивание обеспеченности муниципальных образований Иркутской области по реализации ими их отдельных расходных обязательств","01","02","91.1.00.60004","000",{"$f":"F20","v":0}]
["Расходы на выплаты персоналу в целях обеспечения выполнения функций государственными (муниципальными) органами, казенными учреждениями, органами управления государственными внебюджетными фондами","01","02","91.1.00.60005","100",{"$f":"F21","v":0}]
["Расходы на выплаты персоналу государственных (муниципальных) органов","01","02","91.1.00.60006","120",{"$f":"F22+F23","v":0}]
["Фонд оплаты труда государственных (муниципальных) органов ","01","02","91.1.00.60007","121",0]
["Взносы по обязательному социальному страхованию на выплаты денежного содержания и иные выплаты работникам государственных (муниципальных) органов","01","02","91.1.00.60008","129",0]
["Функционирование Правительства Российской Федерации, высших исполнительных органов государственной власти субъектов РФ, местных администраций","01","04","91.1.00.60009","000",{"$f":"F40+F25","v":16957.900000000001}]
["Программные расходы","01","04","91.1.00.60010","000",{"$f":"F26","v":0}]
["Муниципальная программа \"Подготовка к празднованию 70-летия победы\"","01","04","91.1.00.60011","000",0]
["Реализация мероприятий муниципальной программы за счет средств местного бюджета","01","04","91.1.00.60012","000",0]
["Мероприятия, связанные, с подготовкой к празднованию 70-летия победы","01","04","91.1.00.60013","000",0]
["Закупка товаров, работ и услуг для обеспечения государственных (муниципальных) нужд","01","04","91.1.00.60014","200",0]
["Иные закупки товаров, работ и услуг для обеспечения государственных (муниципальных) нужд","01","04","91.1.00.60015","240",0]
["Прочая закупка товаров, работ и услуг для обеспечения государственных (муниципальных) нужд","01","04","91.1.00.60016","244"]
["Функционирование законодательных (представительных) органов государственной власти и представительных органов муниципальных образований","01","03","91.1.00.00000","000",765.4]
["Непрограммные расходы органов местного самоуправления за счет средств местного бюджета","01","03","91.1.00.00000","000",765.4]
["Осуществление органами местного самоуправления полномочий местного значения поселения","01","03","91.1.00.60000","000",765.4]
["Обеспечение деятельности в сфере установленных функций","01","03","91.1.00.60001","000",765.4]
["Расходы на выплаты персоналу в целях обеспечения выполнения функций государственными (муниципальными) органами, казенными учреждениями, органами управления государственными внебюджетными фондами","01","03","91.1.00.60001","100",765.4]
["Расходы на выплаты персоналу государственных (муниципальных) органов","01","03","91.1.00.60001","120",{"$f":"F38+F39","v":765.4}]
["Фонд оплаты труда государственных (муниципальных) органов ","01","03","91.1.00.60001","121",587.9]
["Взносы по обязательному социальному страхованию на выплаты денежного содержания и иные выплаты работникам государственных (муниципальных) органов","01","03","91.1.00.60001","129",177.5]
["Непрограммные расходы органов местного самоуправления","01","04","91.0.00.00000","000",{"$f":"F41+F62","v":16957.900000000001}]
["Непрограммные расходы органов местного самоуправления за счет средств местного бюджета","01","04","91.1.00.00000","000",{"$f":"F42","v":16957.2}]
["Осуществление органами местного самоуправления полномочий местного значения поселения","01","04","91.1.00.60000","000",{"$f":"F43","v":16957.2}]
["Обеспечение деятельности в сфере установленных функций","01","04","91.1.00.60001","000",{"$f":"F44+F48+F51","v":16957.2}]
["Расходы на выплаты персоналу в целях обеспечения выполнения функций государственными (муниципальными) органами, казенными учреждениями, органами управления государственными внебюджетными фондами","01","04","91.1.00.60001","100",{"$f":"F45","v":13064.2}]
["Расходы на выплаты персоналу государственных (муниципальных) органов","01","04","91.1.00.60001","120",{"$f":"F46+F47","v":13064.2}]
["Фонд оплаты труда государственных (муниципальных) органов ","01","04","91.1.00.60001","121",10034]
["Взносы по обязательному социальному страхованию на выплаты денежного содержания и иные выплаты работникам государственных (муниципальных) органов","01","04","91.1.00.60001","129",3030.2]
["Закупка товаров, работ и услуг для обеспечения государственных (муниципальных) нужд","01","04","91.1.00.60001","200",{"$f":"F49","v":3854}]
["Иные закупки товаров, работ и услуг для обеспечения государственных (муниципальных) нужд","01","04","91.1.00.60001","240",{"$f":"F50","v":3854}]
["Прочая закупка товаров, работ и услуг для обеспечения государственных (муниципальных) нужд","01","04","91.1.00.60001","244",3854]
["Иные бюджетные ассигнования","01","04","91.1.00.60001","800",{"$f":"F52+F54+F55","v":39}]
["Исполнение судебных актов","01","04","91.1.00.60001","830",{"$f":"F53","v":0}]
["Исполнение судебных актов Российской Федерации и мировых соглашений по возмещению вреда, причиненного в результате незаконных действий (бездействия), органов местного самоуправления либо должностных лиц этих органов, а также в результате деятельности казенных учреждений","01","04","91.1.00.60001","831"]
["Уплата прочих налогов, сборов","01","04","91.1.00.60001","852",16]
["Уплата иных платежей","01","04","91.1.00.60001","853",23]
[null,"01","04","91.1.00.60001"]
[null,"01","04","91.1.00.60001"]
[null,"01","04","91.1.00.60001"]
[null,"01","04","91.1.00.60001"]
[null,"01","04","91.1.00.60001"]
[null,"01","04","91.1.00.60001"]
["Непрограммные расходы органов местного самоуправления за счет средств областного бюджета","01","04","91.2.00.00000","000",{"$f":"F71+F63","v":0.7}]
["Субсидии на выравнивание обеспеченности муниципальных образований Иркутской области по реализации ими их отдельных расходных обязательств","01","04","91.2.00.72600","000",{"$f":"F64+F68","v":0}]
["Расходы на выплаты персоналу в целях обеспечения выполнения функций государственными (муниципальными) органами, казенными учреждениями, органами управления государственными внебюджетными фондами","01","04","91.2.00.72600","100",{"$f":"F65","v":0}]
["Расходы на выплаты персоналу государственных (муниципальных) органов","01","04","91.2.00.72600","120",{"$f":"F66+F67","v":0}]
["Фонд оплаты труда государственных (муниципальных) органов ","01","04","91.2.00.72600","121",0]
["Взносы по обязательному социальному страхованию на выплаты денежного содержания и иные выплаты работникам государственных (муниципальных) органов","01","04","91.2.00.72600","129",0]
["Иные закупки товаров, работ и услуг для обеспечения государственных (муниципальных) нужд","01","04","91.2.00.72600","200",{"$f":"F69","v":0}]
["Прочая закупка товаров, работ и услуг для обеспечения государственных (муниципальных) нужд","01","04","91.2.00.72600","240",{"$f":"F70","v":0}]
["Прочая закупка товаров, работ и услуг для обеспечения государственных (муниципальных) нужд","01","04","91.2.00.72600","244",0]
["Субвенции на осуществление областного государственного полномочия по определению перечня должностных лиц органов местного самоуправления, уполномоченных составлять протоколы об административных правонарушениях, предусмотренных отдельными законами Иркутской области об административной ответственности","01","04","91.2.00.73150","000",{"$f":"F74","v":0.7}]
["Закупка товаров, работ и услуг для обеспечения государственных (муниципальных) нужд","01","04","91.2.00.73150","200",{"$f":"F73","v":0.7}]
["Иные закупки товаров, работ и услуг для обеспечения государственных (муниципальных) нужд","01","04","91.2.00.73150","240",{"$f":"F74","v":0.7}]
["Прочая закупка товаров, работ и услуг для обеспечения государственных (муниципальных) нужд","01","04","91.2.00.73150","244",0.7]
["Обеспечение проведения выборов и референдумов","01","07","00.0.00.00000","000",{"$f":"F76","v":0}]
["Непрограммные расходы органов местного самоуправления","01","07","91.0.00.00000","000",0]
["Непрограммные расходы органов местного самоуправления за счет средств местного бюджета","01","07","91.1.00.00000","000",0]
["Осуществление органами местного самоуправления полномочий местного значения поселения","01","07","91.1.00.60000","000",0]
["Проведения выборов и референдумов","01","07","91.1.00.60003","000",0]
["Закупка товаров, работ и услуг для обеспечения государственных (муниципальных) нужд","01","07","91.1.00.60003","200",0]
["Иные закупки товаров, работ и услуг для обеспечения государственных (муниципальных) нужд","01","07","91.1.00.60003","240",0]
["Прочая закупка товаров, работ и услуг для обеспечения государственных (муниципальных) нужд","01","07","91.1.00.60003","244",0]
["Резервные фонды","01","11","00.0.00.00000","000",{"$f":"F84","v":300}]
["Непрограммные расходы органов местного самоуправления","01","11","91.0.00.00000","000",300]
["Непрограммные расходы органов местного самоуправления за счет средств местного бюджета","01","11","91.1.00.00000","000",{"$f":"F86","v":300}]
["Осуществление органами местного самоуправления полномочий местного значения поселения","01","11","91.1.00.60000","000",300]
["Резервный фонд администрации муниципального образования","01","11","91.1.00.60004","000",300]
["Иные бюджетные ассигнования","01","11","91.1.00.60004","800",300]
["Резервные средства","01","11","91.1.00.60004","870",300]
["НАЦИОНАЛЬНАЯ ОБОРОНА","02","00","00.0.00.00000","000",{"$f":"F91+F92+F93","v":327.20000000000005}]
["Мобилизационная и вневойсковая подготовка","02","03","91.3.00.51180","121",228.3]
["Мобилизационная и вневойсковая подготовка","02","03","91.3.00.51180","129",68.900000000000006]
["Закупка товаров, работ и услуг для обеспечения государственных (муниципальных) нужд","02","03","91.3.00.51180","200",30]
["Иные закупки товаров, работ и услуг для обеспечения государственных (муниципальных) нужд","02","03","91.3.00.51180","240",30]
["НАЦИОНАЛЬНАЯ БЕЗОПАСНОСТЬ И ПРАВООХРАНИТЕЛЬНАЯ ДЕЯТЕЛЬНОСТЬ","03","00","00.0.00.00000","000",{"$f":"F96","v":350}]
["Обеспечение пожарной безопасности","03","10","00.0.00.00000","000",350]
["Непрограммные расходы органов местного самоуправления","03","10","91.0.00.00000","000",350]
["Непрограммные расходы органов местного самоуправления за счет средств местного бюджета","03","10","91.1.00.00000","000",350]
["Осуществление органами местного самоуправления полномочий местного значения поселения","03","10","91.1.00.60000","000",350]
["Реализация других функций, связанных с обеспечением национальной безопасности и правоохранительной деятельности","03","10","91.1.00.60007","000",350]
["Закупка товаров, работ и услуг для обеспечения государственных (муниципальных) нужд","03","10","91.1.00.60007","200",350]
["Иные закупки товаров, работ и услуг для обеспечения государственных (муниципальных) нужд","03","10","91.1.00.60007","240",350]
["Прочая закупка товаров, работ и услуг для обеспечения государственных (муниципальных) нужд","03","10","91.1.00.60007","244",350]
["НАЦИОНАЛЬНАЯ ЭКОНОМИКА","04","00","00.0.00.00000","000",{"$f":"F105+F113","v":20326.900000000001}]
["Дорожное хозяйство (дорожные фонды)","04","09","00.0.00.00000","000",{"$f":"F106","v":7593.7}]
["Непрограммные расходы органов местного самоуправления","04","09","91.0.00.00000","000",7593.7]
["Непрограммные расходы органов местного самоуправления за счет средств местного бюджета","04","09","91.1.00.00000","000",7593.7]
["Осуществление органами местного самоуправления полномочий местного значения поселения","04","09","91.1.00.60000","000",7593.7]
["Иные мероприятия и сфере установленных функций","04","09","91.1.00.60011","000",7593.7]
["Закупка товаров, работ и услуг для обеспечения государственных (муниципальных) нужд","04","09","91.1.00.60011","200",7593.7]
["Иные закупки товаров, работ и услуг для обеспечения государственных (муниципальных) нужд","04","09","91.1.00.60011","240",7593.7]
["Прочая закупка товаров, работ и услуг для обеспечения государственных (муниципальных) нужд","04","09","91.1.00.60011","244",7593.7]
["Другие вопросы в области национальной экономике","04","12","00.0.00.00000","000",{"$f":"F114","v":12733.2}]
["Непрограммные расходы органов местного самоуправления","04","12","91.0.00.00000","000",12733.2]
["Непрограммные расходы органов местного самоуправления за счет средств местного бюджета","04","12","91.1.00.00000","000",12733.2]
["Осуществление органами местного самоуправления полномочий местного значения поселения","04","12","91.1.00.60000","000",12733.2]
["Иные мероприятия и сфере установленных функций","04","12","91.1.00.60011","000",12733.2]
["Закупка товаров, работ и услуг для обеспечения государственных (муниципальных) нужд","04","12","91.1.00.60011","200",12733.2]
["Иные закупки товаров, работ и услуг для обеспечения государственных (муниципальных) нужд","04","12","91.1.00.60011","240",12733.2]
["Прочая закупка товаров, работ и услуг для обеспечения государственных (муниципальных) нужд","04","12","91.1.00.60011","244",{"$f":"2000+10733.2","v":12733.2}]
["ЖИЛИЩНО-КОММУНАЛЬНОЕ ХОЗЯЙСТВО","05","00","00.0.00.00000","000",{"$f":"F122+F130+F138","v":24124.6}]
["Жилищное хозяйство","05","01","00.0.00.00000","000",{"$f":"F123","v":6040}]
["Непрограммные расходы органов местного самоуправления","05","01","91.0.00.00000","000",6040]
["Непрограммные расходы органов местного самоуправления за счет средств местного бюджета","05","01","91.1.00.00000","000",6040]
["Осуществление органами местного самоуправления полномочий местного значения поселения","05","01","91.1.00.60000","000",6040]
["Текущий ремонт в сфере установленных функций","05","01","91.1.00.60009","000",6040]
["Закупка товаров, работ и услуг для обеспечения государственных (муниципальных) нужд","05","01","91.1.00.60009","200",6040]
["Иные закупки товаров, работ и услуг для обеспечения государственных (муниципальных) нужд","05","01","91.1.00.60009","240",6040]
["Прочая закупка товаров, работ и услуг для обеспечения государственных (муниципальных) нужд","05","01","91.1.00.60009","244",{"$f":"40+6000","v":6040}]
["Коммунальное хозяйство","05","02","00.0.00.00000","000",{"$f":"F131","v":8400}]
["Непрограммные расходы органов местного самоуправления","05","02","91.0.00.00000","000",{"$f":"F133","v":8400}]
["Непрограммные расходы органов местного самоуправления за счет средств местного бюджета","05","02","91.1.00.00000","000",{"$f":"F133","v":8400}]
["Осуществление органами местного самоуправления полномочий местного значения поселения","05","02","91.1.00.60000","000",{"$f":"F134","v":8400}]
["Иные мероприятия и сфере установленных функций","05","02","91.1.00.60011","000",{"$f":"F135","v":8400}]
["Закупка товаров, работ и услуг для обеспечения государственных (муниципальных) нужд","05","02","91.1.00.60011","200",{"$f":"F136","v":8400}]
["Иные закупки товаров, работ и услуг для обеспечения государственных (муниципальных) нужд","05","02","91.1.00.60011","240",{"$f":"F137","v":8400}]
["Прочая закупка товаров, работ и услуг для обеспечения государственных (муниципальных) нужд","05","02","91.1.00.60011","244",{"$f":"7400+1000","v":8400}]
["Благоустройство","05","03","00.0.00.00000","000",{"$f":"F139","v":9684.6}]
["Непрограммные расходы органов местного самоуправления","05","03","91.0.00.00000","000",{"$f":"F140","v":9684.6}]
["Непрограммные расходы органов местного самоуправления за счет средств местного бюджета","05","03","91.1.00.00000","000",{"$f":"F141","v":9684.6}]
["Осуществление органами местного самоуправления полномочий местного значения поселения","05","03","91.1.00.60000","000",{"$f":"F142","v":9684.6}]
["Мероприятия в области жилищно-коммунального хозяйства","05","03","91.1.00.60100","000",{"$f":"F143+F149","v":9684.6}]
["Уличное освещение","05","03","91.1.00.60101","000",{"$f":"F144+F147","v":1962.2}]
["Закупка товаров, работ и услуг для обеспечения государственных (муниципальных) нужд","05","03","91.1.00.60101","200",{"$f":"F145","v":1962.2}]
["Иные закупки товаров, работ и услуг для обеспечения государственных (муниципальных) нужд","05","03","91.1.00.60101","240",{"$f":"F146","v":1962.2}]
["Прочая закупка товаров, работ и услуг для обеспечения государственных (муниципальных) нужд","05","03","91.1.00.60101","244",{"$f":"1362.2+600","v":1962.2}]
["Иные бюджетные ассигнования","05","03","91.1.00.60101","800",{"$f":"F148","v":0}]
["Уплата иных платежей","05","03","91.1.00.60001","853",0]
["Прочие  мероприятия по благоустройству городских округов и поселений ","05","03","91.1.00.60105","000",{"$f":"F150","v":7722.4}]
["Закупка товаров, работ и услуг для обеспечения государственных (муниципальных) нужд","05","03","91.1.00.60105","200",{"$f":"F151","v":7722.4}]
["Иные закупки товаров, работ и услуг для обеспечения государственных (муниципальных) нужд","05","03","91.1.00.60105","240",{"$f":"F152","v":7722.4}]
["Прочая закупка товаров, работ и услуг для обеспечения государственных (муниципальных) нужд","05","03","91.1.00.60105","244",{"$f":"7472.4+250","v":7722.4}]
["Реализация мероприятий перечня проектов народных инициатив за счет средств местного бюджета","05","03","91.1.00.S2370","000",{"$f":"F154","v":0}]
["Закупка товаров, работ и услуг для обеспечения государственных (муниципальных) нужд","05","03","91.1.00.S2370","200",{"$f":"F155","v":0}]
["Иные закупки товаров, работ и услуг для обеспечения государственных (муниципальных) нужд","05","03","91.1.00.S2370","240",{"$f":"F156","v":0}]
["Прочая закупка товаров, работ и услуг для обеспечения государственных (муниципальных) нужд","05","03","91.1.00.S2370","244"]
["Непрограммные расходы органов местного самоуправления за счет средств областного бюджета","05","03","91.2.00.00000","000",{"$f":"F158+F162","v":0}]
["Субсидии на реализацию мероприятий перечня проектов народных инициатив за счет областного бюджета","05","03","91.2.00.72370","000",{"$f":"F159","v":0}]
["Закупка товаров, работ и услуг для обеспечения государственных (муниципальных) нужд","05","03","91.2.00.72370","200",{"$f":"F160","v":0}]
["Иные закупки товаров, работ и услуг для обеспечения государственных (муниципальных) нужд","05","03","91.2.00.72370","240",{"$f":"F161","v":0}]
["Прочая закупка товаров, работ и услуг для обеспечения государственных (муниципальных) нужд","05","03","91.2.00.72370","244"]
["Субсидии на выравнивание обеспеченности муниципальных образований Иркутской области по реализации ими их отдельных расходных обязательств","05","03","91.2.00.72600","000",{"$f":"F163","v":0}]
["Закупка товаров, работ и услуг для обеспечения государственных (муниципальных) нужд","05","03","91.2.00.72600","200",{"$f":"F164","v":0}]
["Иные закупки товаров, работ и услуг для обеспечения государственных (муниципальных) нужд","05","03","91.2.00.72600","240",{"$f":"F165","v":0}]
["Прочая закупка товаров, работ и услуг для обеспечения государственных (муниципальных) нужд","05","03","91.2.00.72600","244"]
["КУЛЬТУРА, КИНЕМАТОГРАФИЯ","08","00","00.0.00.00000","000",{"$f":"F167","v":17851.2}]
["КУЛЬТУРА","08","01","91.0.00.00000","000",{"$f":"F168+F174","v":17851.2}]
["Непрограммные расходы органов местного самоуправления","08","01","91.1.00.00000","000",{"$f":"F169","v":13878}]
["Осуществление органами местного самоуправления полномочий местного значения поселения","08","01","91.1.00.60002","000",{"$f":"F170","v":13878}]
["Расходы на выплату персоналу в целях обеспечения выполнения функций государственными (муниципальными) органами, казенными учреждениями, органами управления государственными внебюджетными фондами","08","01","91.1.00.60002","100",{"$f":"F171","v":13878}]
["Расходы на выплату персоналу казенных учреждений","08","01","91.1.00.60002","110",{"$f":"F172+F173","v":13878}]
["Фонд оплаты труда казенных учреждений и взносы по обязательному социальному страхованию","08","01","91.1.00.60002","111",10659]
["по оплате труда работников и иные выплаты работникам учреждений","08","01","91.1.00.60002","119",3219]
["Непрограммные расходы органов местного самоуправления","08","01","91.0.00.00000","000",{"$f":"F175","v":3973.2}]
["Непрограммные расходы органов местного самоуправления за счет средств местного бюджета","08","01","91.1.00.00000","000",3973.2]
["Осуществление органами местного самоуправления полномочий местного значения поселения","08","01","91.1.00.60000","000",3973.2]
["Обеспечение деятельности в сфере установленных функции бюджетных, автономных и казенных учреждений","08","01","91.1.00.60002","000",3973.2]
["Закупка товаров, работ и услуг для обеспечения государственных (муниципальных) нужд","08","01","91.1.00.60002","200",3973.2]
["Иные закупки товаров, работ и услуг для обеспечения государственных (муниципальных) нужд","08","01","91.1.00.60002","240",3973.2]
["Прочая закупка товаров, работ и услуг для обеспечения государственных (муниципальных) нужд","08","01","91.1.00.60002","244",{"$f":"3373.2+600","v":3973.2}]
["СОЦИАЛЬНАЯ ПОЛИТИКА","10","00","00.0.00.00000","000",{"$f":"F182","v":244.7}]
["Пенсионное обеспечение","10","01","00.0.00.00000","000",244.7]
["Непрограммные расходы органов местного самоуправления","10","01","91.0.00.00000","000",244.7]
["Непрограммные расходы органов местного самоуправления за счет средств местного бюджета","10","01","91.1.00.00000","000",244.7]
["Осуществление органами местного самоуправления полномочий местного значения поселения","10","01","91.1.00.60000","000",244.7]
["Доплаты к пенсиям муниципальных служащих","10","01","91.1.00.60018","000",244.7]
["Социальное обеспечение и иные выплаты населению","10","01","91.1.00.60018","300",244.7]
["Публичные нормативные социальные выплаты гражданам","10","01","91.1.00.60018","310",244.7]
["Иные пенсии, социальные доплаты к пенсиям","10","01","91.1.00.60018","312",244.7]
["ФИЗИЧЕСКАЯ КУЛЬТУРА И СПОРТ","11","00","00.0.00.00000","000",{"$f":"F191","v":{"$error":"#REF!"}}]
["Другие вопросы в области физической культуры и спорта","11","05","00.0.00.00000","000",{"$error":"#REF!"}]
["Непрограммные расходы органов местного самоуправления","11","05","91.0.00.00000","000",{"$error":"#REF!"}]
["Непрограммные расходы органов местного самоуправления за счет средств местного бюджета","11","05","91.1.00.00000","000",{"$error":"#REF!"}]
["Осуществление органами местного самоуправления полномочий местного значения поселения","11","05","91.1.00.60000","000",{"$error":"#REF!"}]
["Обеспечение деятельности в сфере установленных функции бюджетных, автономных и казенных учреждений","11","05","91.1.00.60002","000",{"$error":"#REF!"}]
["Закупка товаров, работ и услуг для обеспечения государственных (муниципальных) нужд","11","05","91.1.00.60002","200",{"$error":"#REF!"}]
["Иные закупки товаров, работ и услуг для обеспечения государственных (муниципальных) нужд","11","05","91.1.00.60002","240",{"$f":"#REF!","v":{"$error":"#REF!"}}]
["МЕЖБЮДЖЕТНЫЕ ТРАНСФЕРТЫ БЮДЖЕТАМ БЮДЖЕТНОЙ СИСТЕМЫ РФ","14","00","00.0.00.00000","000",{"$f":"F199","v":259.2}]
["Прочие межбюджетные трансферты общего характера ","14","03","00.0.00.00000","000",259.2]
["Непрограммые расходы органов местного самоуправления ","14","03","91.0.00.00000","000",259.2]
["Непрограммые расходы органов местного самоуправления за счет средств местного бюджета","14","03","91.1.00.00000","000",259.2]
["Осуществление органами местного самоуправления полномочий местного значения поселения","14","03","91.1.00.60000","000",259.2]
["Иные межбюджетные трансферты","14","03","91.1.00.60020","000",259.2]
["Выполнение функций органами местного самоуправления","14","03","91.1.00.60020","500",259.2]
["Иные межбюджетные трансферты","14","03","91.1.00.60020","540",259.2]
["МЕЖБЮДЖЕТНЫЕ ТРАНСФЕРТЫ ОБЩЕГО ХАРАКТЕРА БЮДЖЕТАМ СУБЪЕКТОВ РОССИЙСКОЙ ФЕДЕРАЦИИ И МУНИЦИПАЛЬНЫХ ОБРАЗОВАНИЙ ","14","00","00.0.00.00000","000",{"$f":"F207","v":{"$error":"#REF!"}}]
["Прочие межбюджетные трансферты общего характера ","14","03","00.0.00.00000","000",{"$error":"#REF!"}]
["Непрограммные расходы органов местного самоуправления","14","03","91.0.00.00000","000",{"$error":"#REF!"}]
["Непрограммные расходы органов местного самоуправления за счет средств местного бюджета","14","03","91.1.00.00000","000",{"$error":"#REF!"}]
["Осуществление органами местного самоуправления полномочий местного значения поселения","14","03","91.1.00.60000","000",{"$error":"#REF!"}]
["Иные межбюджетные трансферты","14","03","91.1.00.60020","000",{"$error":"#REF!"}]
["Межбюджетные трансферты","14","03","91.1.00.60020","500",{"$f":"#REF!","v":{"$error":"#REF!"}}]